[Event "*** Titled Tuesday Blitz"]
[Site "Chess.com"]
[Date "2021.02.02"]
[Round "11"]
[White "MaxLeto"]
[Black "FMalexhdez"]
[Result "1-0"]
[WhiteElo "2303"]
[BlackElo "2197"]
[TimeControl "180+1"]
[EndTime "12:05:47 PST"]
[Termination "MaxLeto won by resignation"]

1. g4 {[%clk 0:03:00.9]} 1... c6 {[%clk 0:02:59]} 2. Bg2 {[%clk 0:03:00.9]} 2...
d5 {[%clk 0:02:59.4]} 3. g5 {[%clk 0:03:01.4]} 3... e5 {[%clk 0:02:58.5]} 4. d4
{[%clk 0:03:01.9]} 4... Nd7 {[%clk 0:02:55.7]} 5. dxe5 {[%clk 0:02:45.9]} 5...
Nxe5 {[%clk 0:02:55.4]} 6. Bf4 {[%clk 0:02:44.3]} 6... Ng6 {[%clk 0:02:50.3]} 7.
Bg3 {[%clk 0:02:26.7]} 7... Qxg5 {[%clk 0:02:48.1]} 8. h4 {[%clk 0:02:23.4]}
8... Qf6 {[%clk 0:02:41.4]} 9. Nc3 {[%clk 0:02:16.9]} 9... Nf4 {[%clk
0:02:37.4]} 10. Bf3 {[%clk 0:02:06.3]} 10... Bb4 {[%clk 0:02:27.6]} 11. Qd2
{[%clk 0:02:03.6]} 11... Bxc3 {[%clk 0:02:27.6]} 12. bxc3 {[%clk 0:02:03.9]}
12... Ng6 {[%clk 0:02:23.8]} 13. h5 {[%clk 0:01:56.4]} 13... Ne5 {[%clk
0:02:21.2]} 14. Qe3 {[%clk 0:01:53.2]} 14... Ne7 {[%clk 0:02:07.1]} 15. Qxe5
{[%clk 0:01:44.5]} 15... Qh6 {[%clk 0:02:02.5]} 16. Bf4 {[%clk 0:01:33.6]} 16...
Qe6 {[%clk 0:02:01.7]} 17. Qxg7 {[%clk 0:01:20.5]} 17... Rg8 {[%clk 0:01:58.8]}
18. Qe5 {[%clk 0:01:21]} 18... Qd7 {[%clk 0:01:34.5]} 19. Nh3 {[%clk 0:01:10.3]}
19... Qd8 {[%clk 0:01:16.9]} 20. Bg5 {[%clk 0:00:44.3]} 20... Be6 {[%clk
0:01:12.4]} 21. Nf4 {[%clk 0:00:41.6]} 21... Qd7 {[%clk 0:01:09]} 22. Nxe6
{[%clk 0:00:39.5]} 22... fxe6 {[%clk 0:01:07.5]} 23. Bg4 {[%clk 0:00:37.8]}
23... h6 {[%clk 0:00:43.6]} 24. Bxe6 {[%clk 0:00:32.9]} 24... Rxg5 {[%clk
0:00:38]} 25. Bxd7+ {[%clk 0:00:32.7]} 25... Kxd7 {[%clk 0:00:38.5]} 26. Qf4
{[%clk 0:00:28.8]} 26... Rag8 {[%clk 0:00:36.5]} 27. O-O-O {[%clk 0:00:28.8]}
27... Nf5 {[%clk 0:00:36.3]} 28. e4 {[%clk 0:00:27.7]} 28... Ke6 {[%clk
0:00:36.2]} 29. exf5+ {[%clk 0:00:27.7]} 29... Rxf5 {[%clk 0:00:35.2]} 30. Rde1+
{[%clk 0:00:27.5]} 1-0

[Event "*** Titled Tuesday Blitz"]
[Site "Chess.com"]
[Date "2021.02.02"]
[Round "11"]
[White "TimofeevAr"]
[Black "ftorodent"]
[Result "1-0"]
[WhiteElo "2867"]
[BlackElo "2690"]
[TimeControl "180+1"]
[EndTime "12:05:50 PST"]
[Termination "TimofeevAr won by resignation"]

1. g3 {[%clk 0:03:00.9]} 1... d5 {[%clk 0:02:59.5]} 2. Bg2 {[%clk 0:03:01.2]}
2... c6 {[%clk 0:02:59.7]} 3. d3 {[%clk 0:02:59.2]} 3... Bg4 {[%clk 0:02:55.8]}
4. Nd2 {[%clk 0:02:57.7]} 4... e5 {[%clk 0:02:54.4]} 5. c4 {[%clk 0:02:57.2]}
5... Nf6 {[%clk 0:02:48.8]} 6. h3 {[%clk 0:02:55]} 6... Be6 {[%clk 0:02:37.6]}
7. Ngf3 {[%clk 0:02:54]} 7... Nbd7 {[%clk 0:02:37.8]} 8. O-O {[%clk 0:02:52.9]}
8... Be7 {[%clk 0:02:35.4]} 9. e3 {[%clk 0:02:52.4]} 9... h6 {[%clk 0:02:31.1]}
10. Qc2 {[%clk 0:02:52.1]} 10... O-O {[%clk 0:02:30.6]} 11. b3 {[%clk
0:02:52.1]} 11... a5 {[%clk 0:02:24.5]} 12. Bb2 {[%clk 0:02:52]} 12... Bd6
{[%clk 0:02:24.9]} 13. Rac1 {[%clk 0:02:45.4]} 13... Qe7 {[%clk 0:02:23.7]} 14.
Rfe1 {[%clk 0:02:43.7]} 14... Bf5 {[%clk 0:02:07.9]} 15. Nh4 {[%clk 0:02:35.4]}
15... Bh7 {[%clk 0:02:03.8]} 16. e4 {[%clk 0:02:30.8]} 16... dxe4 {[%clk
0:01:55]} 17. Nxe4 {[%clk 0:02:28.1]} 17... Nxe4 {[%clk 0:01:54.8]} 18. Bxe4
{[%clk 0:02:23.2]} 18... Bxe4 {[%clk 0:01:48.5]} 19. Rxe4 {[%clk 0:02:20.1]}
19... Qg5 {[%clk 0:01:33.5]} 20. Nf3 {[%clk 0:02:14.1]} 20... Qg6 {[%clk
0:01:31.1]} 21. Nxe5 {[%clk 0:02:06.5]} 21... Nxe5 {[%clk 0:01:23.2]} 22. Bxe5
{[%clk 0:02:06.5]} 22... Bxe5 {[%clk 0:01:23.1]} 23. Rxe5 {[%clk 0:02:06.8]}
23... Rad8 {[%clk 0:01:23]} 24. d4 {[%clk 0:02:01.1]} 24... Qxc2 {[%clk
0:01:16.6]} 25. Rxc2 {[%clk 0:02:01]} 25... Rxd4 {[%clk 0:01:17.3]} 26. Rxa5
{[%clk 0:02:01.1]} 26... Re8 {[%clk 0:01:17.8]} 27. Kg2 {[%clk 0:01:59.5]} 27...
g6 {[%clk 0:01:11.8]} 28. Ra7 {[%clk 0:01:55.7]} 28... Re7 {[%clk 0:01:05.9]}
29. a4 {[%clk 0:01:55.4]} 29... c5 {[%clk 0:00:56.5]} 30. a5 {[%clk 0:01:54.9]}
30... Rd6 {[%clk 0:00:56.4]} 31. Rc3 {[%clk 0:01:51.1]} 31... Kg7 {[%clk
0:00:26.3]} 32. Re3 {[%clk 0:01:50]} 32... Rc7 {[%clk 0:00:25]} 33. Kf3 {[%clk
0:01:41.6]} 33... Kf6 {[%clk 0:00:23.8]} 34. Ke2 {[%clk 0:01:41.6]} 34... Ra6
{[%clk 0:00:19.8]} 35. Rxa6+ {[%clk 0:01:40.6]} 35... bxa6 {[%clk 0:00:20.1]}
36. Kd2 {[%clk 0:01:39.2]} 36... Rd7+ {[%clk 0:00:19]} 37. Rd3 {[%clk
0:01:37.2]} 37... Rb7 {[%clk 0:00:16]} 38. Kc3 {[%clk 0:01:35.7]} 38... Ke6
{[%clk 0:00:15.9]} 39. Rd5 {[%clk 0:01:34]} 39... Rc7 {[%clk 0:00:15.4]} 40. g4
{[%clk 0:01:32.6]} 40... f5 {[%clk 0:00:14.5]} 41. gxf5+ {[%clk 0:01:29.7]}
41... gxf5 {[%clk 0:00:14.9]} 42. f4 {[%clk 0:01:29.7]} 42... h5 {[%clk
0:00:13.3]} 43. h4 {[%clk 0:01:29.8]} 43... Rg7 {[%clk 0:00:12.4]} 44. Rxc5
{[%clk 0:01:28.3]} 44... Rg4 {[%clk 0:00:13.1]} 45. Rc6+ {[%clk 0:01:28]} 45...
Kd7 {[%clk 0:00:12.4]} 46. Rxa6 {[%clk 0:01:28.2]} 1-0

[Event "*** Titled Tuesday Blitz"]
[Site "Chess.com"]
[Date "2021.02.02"]
[Round "11"]
[White "TigrVShlyape"]
[Black "Vugar_Manafov"]
[Result "1-0"]
[WhiteElo "2841"]
[BlackElo "2662"]
[TimeControl "180+1"]
[EndTime "12:05:52 PST"]
[Termination "TigrVShlyape won by resignation"]

1. d4 {[%clk 0:02:56.9]} 1... Nf6 {[%clk 0:03:00.9]} 2. Nf3 {[%clk 0:02:56.9]}
2... e6 {[%clk 0:03:00.1]} 3. Bf4 {[%clk 0:02:56.8]} 3... Bd6 {[%clk 0:02:59.3]}
4. Bg3 {[%clk 0:02:54.7]} 4... Ne4 {[%clk 0:02:57]} 5. Nbd2 {[%clk 0:02:54.4]}
5... Nxd2 {[%clk 0:02:54.1]} 6. Qxd2 {[%clk 0:02:54.1]} 6... O-O {[%clk
0:02:52.5]} 7. e4 {[%clk 0:02:54.1]} 7... f5 {[%clk 0:02:50.2]} 8. exf5 {[%clk
0:02:38.9]} 8... Rxf5 {[%clk 0:02:48.7]} 9. Bd3 {[%clk 0:02:38]} 9... Rf8 {[%clk
0:02:48]} 10. O-O-O {[%clk 0:02:27.6]} 10... Nc6 {[%clk 0:02:45.5]} 11. c3
{[%clk 0:02:25.4]} 11... b5 {[%clk 0:02:41]} 12. Qg5 {[%clk 0:01:57.3]} 12...
Qxg5+ {[%clk 0:02:29.2]} 13. Nxg5 {[%clk 0:01:56.1]} 13... h6 {[%clk 0:02:26.1]}
14. Bxd6 {[%clk 0:01:49.4]} 14... cxd6 {[%clk 0:02:27]} 15. Ne4 {[%clk
0:01:49.5]} 15... d5 {[%clk 0:02:24.6]} 16. Nd6 {[%clk 0:01:46.8]} 16... Rxf2
{[%clk 0:02:21.5]} 17. Rdf1 {[%clk 0:01:43.1]} 17... Rxf1+ {[%clk 0:02:19.8]}
18. Rxf1 {[%clk 0:01:42.7]} 18... Nd8 {[%clk 0:02:14.7]} 19. Bxb5 {[%clk
0:01:37.3]} 19... Rb8 {[%clk 0:02:11.6]} 20. Bd3 {[%clk 0:01:36.4]} 20... Nb7
{[%clk 0:02:08.7]} 21. Nb5 {[%clk 0:01:24.5]} 21... a6 {[%clk 0:02:05.5]} 22.
Nc7 {[%clk 0:01:08.3]} 22... Nd6 {[%clk 0:02:03.9]} 23. Bxa6 {[%clk 0:01:08.3]}
23... Rb6 {[%clk 0:01:42.1]} 24. Bxc8 {[%clk 0:01:06.8]} 24... Nxc8 {[%clk
0:01:42.6]} 25. a4 {[%clk 0:00:58.8]} 25... Nd6 {[%clk 0:01:41.1]} 26. b4 {[%clk
0:00:29]} 26... Rc6 {[%clk 0:01:29.1]} 27. Nb5 {[%clk 0:00:28.9]} 27... Nxb5
{[%clk 0:01:29]} 28. axb5 {[%clk 0:00:29.3]} 28... Rxc3+ {[%clk 0:01:29.7]} 29.
Kb2 {[%clk 0:00:29.8]} 29... Rc7 {[%clk 0:01:28.9]} 30. Kb3 {[%clk 0:00:30]}
30... d6 {[%clk 0:01:27.1]} 31. b6 {[%clk 0:00:28.5]} 31... Rb7 {[%clk
0:01:26.6]} 32. b5 {[%clk 0:00:28.9]} 32... Rxb6 {[%clk 0:01:26.2]} 33. Kb4
{[%clk 0:00:29.4]} 33... e5 {[%clk 0:01:25]} 34. Ka5 {[%clk 0:00:29.7]} 34...
Rb8 {[%clk 0:01:24.4]} 35. b6 {[%clk 0:00:30.1]} 35... e4 {[%clk 0:01:20.6]} 36.
Ka6 {[%clk 0:00:29.8]} 36... Ra8+ {[%clk 0:01:20.4]} 37. Kb5 {[%clk 0:00:27.1]}
37... Ra3 {[%clk 0:01:15.5]} 38. Rb1 {[%clk 0:00:26.7]} 38... e3 {[%clk
0:01:14.7]} 39. b7 {[%clk 0:00:26.5]} 39... e2 {[%clk 0:01:11.6]} 40. b8=Q+
{[%clk 0:00:26.3]} 40... Kh7 {[%clk 0:01:12.5]} 41. Qe8 {[%clk 0:00:25.4]} 1-0

[Event "*** Titled Tuesday Blitz"]
[Site "Chess.com"]
[Date "2021.02.02"]
[Round "11"]
[White "sorrm8thatscheckm8"]
[Black "awesomevishesh"]
[Result "1-0"]
[WhiteElo "2560"]
[BlackElo "2496"]
[TimeControl "180+1"]
[EndTime "12:05:53 PST"]
[Termination "sorrm8thatscheckm8 won by resignation"]

1. d4 {[%clk 0:03:00.9]} 1... Nf6 {[%clk 0:02:59.6]} 2. c4 {[%clk 0:03:01]} 2...
g6 {[%clk 0:02:59.7]} 3. Nf3 {[%clk 0:03:00.6]} 3... Bg7 {[%clk 0:02:59.9]} 4.
Nc3 {[%clk 0:03:01.2]} 4... O-O {[%clk 0:03:00.4]} 5. g3 {[%clk 0:03:01.5]} 5...
d6 {[%clk 0:03:00.2]} 6. Bg2 {[%clk 0:03:01.4]} 6... Nbd7 {[%clk 0:02:59.6]} 7.
O-O {[%clk 0:03:01.9]} 7... e5 {[%clk 0:03:00.2]} 8. e4 {[%clk 0:03:01.6]} 8...
c6 {[%clk 0:02:59.7]} 9. h3 {[%clk 0:03:01.1]} 9... Qa5 {[%clk 0:02:52.8]} 10.
d5 {[%clk 0:02:57.6]} 10... cxd5 {[%clk 0:02:49.4]} 11. cxd5 {[%clk 0:02:57.2]}
11... b5 {[%clk 0:02:47.4]} 12. Re1 {[%clk 0:02:52.7]} 12... b4 {[%clk
0:02:46.5]} 13. Nb1 {[%clk 0:02:52.3]} 13... Nc5 {[%clk 0:02:41.4]} 14. Nbd2
{[%clk 0:02:49.1]} 14... Ba6 {[%clk 0:02:38.2]} 15. Nb3 {[%clk 0:02:47.6]} 15...
Nxb3 {[%clk 0:02:37.1]} 16. Qxb3 {[%clk 0:02:48.5]} 16... Nd7 {[%clk 0:02:19.8]}
17. Be3 {[%clk 0:02:44.2]} 17... f5 {[%clk 0:01:53.3]} 18. a3 {[%clk 0:02:31.7]}
18... bxa3 {[%clk 0:01:40.9]} 19. Rxa3 {[%clk 0:02:25.3]} 19... Qb5 {[%clk
0:01:39.8]} 20. Qa2 {[%clk 0:02:18.5]} 20... Bc8 {[%clk 0:00:39]} 21. exf5
{[%clk 0:02:07.5]} 21... gxf5 {[%clk 0:00:36.8]} 22. Ng5 {[%clk 0:02:08.1]}
22... f4 {[%clk 0:00:31.7]} 23. gxf4 {[%clk 0:02:05]} 23... exf4 {[%clk
0:00:30.8]} 24. Bc1 {[%clk 0:02:02.9]} 24... Ne5 {[%clk 0:00:29.2]} 25. Be4
{[%clk 0:01:55.9]} 25... h6 {[%clk 0:00:23.7]} 26. Ne6 {[%clk 0:01:50.6]} 26...
Rf7 {[%clk 0:00:21.3]} 27. Bxf4 {[%clk 0:01:44.9]} 27... Kh8 {[%clk 0:00:13]}
28. Rg3 {[%clk 0:01:41.8]} 28... Bxe6 {[%clk 0:00:12.3]} 29. dxe6 {[%clk
0:01:34.2]} 29... Qb4 {[%clk 0:00:11.2]} 30. Re2 {[%clk 0:01:30.3]} 30... Rxf4
{[%clk 0:00:10.2]} 31. Bxa8 {[%clk 0:01:29.3]} 31... Qb5 {[%clk 0:00:06]} 32.
Rc2 {[%clk 0:01:24.4]} 32... Kh7 {[%clk 0:00:02.7]} 33. Qb1 {[%clk 0:01:22.7]}
33... Ng6 {[%clk 0:00:01.7]} 34. Rxg6 {[%clk 0:01:21.1]} 34... Kxg6 {[%clk
0:00:01.5]} 35. Rc5+ {[%clk 0:01:20.2]} 35... Kf6 {[%clk 0:00:01.8]} 36. Rxb5
{[%clk 0:01:19.4]} 1-0

[Event "*** Titled Tuesday Blitz"]
[Site "Chess.com"]
[Date "2021.02.02"]
[Round "11"]
[White "Boninknights"]
[Black "MasterSonnevanck23"]
[Result "1-0"]
[WhiteElo "2476"]
[BlackElo "2373"]
[TimeControl "180+1"]
[EndTime "12:05:54 PST"]
[Termination "Boninknights won by resignation"]

1. d4 {[%clk 0:02:59.4]} 1... c5 {[%clk 0:02:59.5]} 2. d5 {[%clk 0:02:58.7]}
2... Nf6 {[%clk 0:02:59.4]} 3. c4 {[%clk 0:02:56.8]} 3... d6 {[%clk 0:02:59.1]}
4. Nc3 {[%clk 0:02:55.6]} 4... g6 {[%clk 0:02:59.3]} 5. Nf3 {[%clk 0:02:54.1]}
5... Bg7 {[%clk 0:02:59.2]} 6. Bg5 {[%clk 0:02:53.5]} 6... O-O {[%clk
0:02:57.3]} 7. Nd2 {[%clk 0:02:52]} 7... e6 {[%clk 0:02:54.8]} 8. e4 {[%clk
0:02:50.9]} 8... exd5 {[%clk 0:02:53.7]} 9. cxd5 {[%clk 0:02:50.7]} 9... h6
{[%clk 0:02:41]} 10. Bh4 {[%clk 0:02:49.5]} 10... g5 {[%clk 0:02:08.7]} 11. Bg3
{[%clk 0:02:48.3]} 11... Nxe4 {[%clk 0:02:07.9]} 12. Ndxe4 {[%clk 0:02:41.4]}
12... f5 {[%clk 0:02:07.9]} 13. Nxd6 {[%clk 0:02:33]} 13... f4 {[%clk
0:02:05.4]} 14. Nxc8 {[%clk 0:02:29.5]} 14... fxg3 {[%clk 0:01:48.3]} 15. hxg3
{[%clk 0:02:20.6]} 15... Bd4 {[%clk 0:01:48.1]} 16. Ne4 {[%clk 0:02:04.6]} 16...
Qa5+ {[%clk 0:01:42.8]} 17. Qd2 {[%clk 0:02:00.3]} 17... Qxd2+ {[%clk
0:01:37.7]} 18. Kxd2 {[%clk 0:01:58.4]} 18... Rxc8 {[%clk 0:01:37.3]} 19. Rxh6
{[%clk 0:01:56.5]} 19... Nd7 {[%clk 0:01:19.1]} 20. Be2 {[%clk 0:01:43.1]} 20...
Bxb2 {[%clk 0:01:13.6]} 21. Rb1 {[%clk 0:01:39.1]} 21... Bg7 {[%clk 0:01:12.7]}
22. Rg6 {[%clk 0:01:37.1]} 22... b6 {[%clk 0:01:06.9]} 23. Rxg5 {[%clk
0:01:36.3]} 23... Re8 {[%clk 0:01:02.7]} 24. f3 {[%clk 0:01:28.6]} 24... Re5
{[%clk 0:00:58.2]} 25. Rxe5 {[%clk 0:01:22.8]} 25... Nxe5 {[%clk 0:00:58.1]} 26.
f4 {[%clk 0:01:21.7]} 26... Nf7 {[%clk 0:00:54.4]} 27. Bg4 {[%clk 0:01:15.2]}
27... Rd8 {[%clk 0:00:50.7]} 28. Be6 {[%clk 0:01:13.9]} 28... Kf8 {[%clk
0:00:50.8]} 29. Rh1 {[%clk 0:01:11.2]} 29... Nd6 {[%clk 0:00:48.7]} 30. Nxd6
{[%clk 0:01:09.1]} 30... Rxd6 {[%clk 0:00:48.8]} 31. Rh7 {[%clk 0:01:06.9]}
31... c4 {[%clk 0:00:46.3]} 32. f5 {[%clk 0:01:05.7]} 32... c3+ {[%clk
0:00:41.8]} 33. Kc2 {[%clk 0:01:05.3]} 33... Be5 {[%clk 0:00:39.4]} 34. g4
{[%clk 0:00:59.7]} 34... b5 {[%clk 0:00:32.4]} 35. g5 {[%clk 0:00:58.4]} 35...
Ra6 {[%clk 0:00:32.2]} 36. f6 {[%clk 0:00:55.8]} 36... Rxa2+ {[%clk 0:00:31.9]}
37. Kd3 {[%clk 0:00:52.9]} 37... Rd2+ {[%clk 0:00:29.9]} 38. Ke4 {[%clk
0:00:52.6]} 38... Re2+ {[%clk 0:00:27.5]} 39. Kf5 {[%clk 0:00:52.1]} 1-0

[Event "*** Titled Tuesday Blitz"]
[Site "Chess.com"]
[Date "2021.02.02"]
[Round "11"]
[White "canary2016"]
[Black "OMGCovid-19"]
[Result "1-0"]
[WhiteElo "2035"]
[BlackElo "1977"]
[TimeControl "180+1"]
[EndTime "12:06:00 PST"]
[Termination "canary2016 won by checkmate"]

1. Nf3 {[%clk 0:03:00.9]} 1... Nf6 {[%clk 0:02:58.3]} 2. g3 {[%clk 0:02:59.9]}
2... g6 {[%clk 0:02:58.2]} 3. Bg2 {[%clk 0:02:59.9]} 3... Bg7 {[%clk 0:02:58.4]}
4. O-O {[%clk 0:03:00.1]} 4... c5 {[%clk 0:02:58.6]} 5. c4 {[%clk 0:02:55]} 5...
Nc6 {[%clk 0:02:58.6]} 6. Nc3 {[%clk 0:02:52.4]} 6... O-O {[%clk 0:02:58.3]} 7.
d4 {[%clk 0:02:51.1]} 7... cxd4 {[%clk 0:02:58.9]} 8. Nxd4 {[%clk 0:02:50.8]}
8... d6 {[%clk 0:02:59.5]} 9. Nxc6 {[%clk 0:02:49.3]} 9... bxc6 {[%clk
0:03:00.4]} 10. Bxc6 {[%clk 0:02:49.4]} 10... Rb8 {[%clk 0:03:00.9]} 11. Bg2
{[%clk 0:02:49.2]} 11... Be6 {[%clk 0:03:01.1]} 12. b3 {[%clk 0:02:41.6]} 12...
Qa5 {[%clk 0:03:00.1]} 13. Bb2 {[%clk 0:02:40.9]} 13... Bxc4 {[%clk 0:02:52.9]}
14. Na4 {[%clk 0:02:34.3]} 14... Be6 {[%clk 0:02:48.1]} 15. Bc3 {[%clk
0:02:31.7]} 15... Qh5 {[%clk 0:02:47.7]} 16. Rc1 {[%clk 0:02:27.5]} 16... Ng4
{[%clk 0:02:27.2]} 17. h3 {[%clk 0:02:23.9]} 17... Ne5 {[%clk 0:02:27]} 18. Bxe5
{[%clk 0:02:16.1]} 18... Bxe5 {[%clk 0:02:23.3]} 19. Kh2 {[%clk 0:02:13.7]}
19... Rb4 {[%clk 0:02:09]} 20. Qd2 {[%clk 0:02:08.4]} 20... Rfb8 {[%clk
0:01:30.3]} 21. f4 {[%clk 0:02:03.6]} 21... Bg7 {[%clk 0:01:12.1]} 22. Nc3
{[%clk 0:02:03]} 22... Qa5 {[%clk 0:00:52.2]} 23. Ne4 {[%clk 0:01:43.1]} 23...
Qa6 {[%clk 0:00:27.1]} 24. Ng5 {[%clk 0:01:40.1]} 24... Bd7 {[%clk 0:00:22.8]}
25. Rc7 {[%clk 0:01:36.2]} 25... Be8 {[%clk 0:00:15]} 26. Rxe7 {[%clk
0:01:34.5]} 26... h6 {[%clk 0:00:13.8]} 27. Nf3 {[%clk 0:01:28.2]} 27... Bf6
{[%clk 0:00:12.8]} 28. Re3 {[%clk 0:01:25]} 28... Bc6 {[%clk 0:00:08.6]} 29. Rd3
{[%clk 0:01:24.2]} 29... d5 {[%clk 0:00:07.5]} 30. Nd4 {[%clk 0:01:18.6]} 30...
Bxd4 {[%clk 0:00:06.2]} 31. Rxd4 {[%clk 0:01:18.6]} 31... Rxd4 {[%clk 0:00:06]}
32. Qxd4 {[%clk 0:01:18.9]} 32... Qb5 {[%clk 0:00:06.2]} 33. Rc1 {[%clk
0:01:15.3]} 33... Re8 {[%clk 0:00:05.3]} 34. e3 {[%clk 0:01:14.2]} 34... Bb7
{[%clk 0:00:04.9]} 35. Rc7 {[%clk 0:01:12.4]} 35... Ba8 {[%clk 0:00:03.2]} 36.
Qxa7 {[%clk 0:01:11.4]} 36... Qe2 {[%clk 0:00:02.4]} 37. Rxf7 {[%clk 0:01:10]}
37... d4 {[%clk 0:00:02.3]} 38. Rg7+ {[%clk 0:01:09.4]} 38... Kh8 {[%clk
0:00:02]} 39. Rh7+ {[%clk 0:01:09.5]} 39... Kg8 {[%clk 0:00:02.1]} 40. Qg7#
{[%clk 0:01:08.8]} 1-0

[Event "*** Titled Tuesday Blitz"]
[Site "Chess.com"]
[Date "2021.02.02"]
[Round "11"]
[White "KaterinaMiroshnik"]
[Black "PriSachu"]
[Result "1-0"]
[WhiteElo "2615"]
[BlackElo "2486"]
[TimeControl "180+1"]
[EndTime "12:06:01 PST"]
[Termination "KaterinaMiroshnik won by resignation"]

1. d4 {[%clk 0:03:00.9]} 1... d5 {[%clk 0:02:46.1]} 2. Nf3 {[%clk 0:03:01.8]}
2... Nf6 {[%clk 0:02:45.7]} 3. c3 {[%clk 0:03:01.4]} 3... c5 {[%clk 0:02:43.8]}
4. e3 {[%clk 0:03:02.3]} 4... Nc6 {[%clk 0:02:43.9]} 5. Be2 {[%clk 0:02:59.4]}
5... Bg4 {[%clk 0:02:42.9]} 6. O-O {[%clk 0:02:57.9]} 6... e6 {[%clk 0:02:43.2]}
7. dxc5 {[%clk 0:02:55.7]} 7... Bxc5 {[%clk 0:02:42.7]} 8. b4 {[%clk 0:02:55.1]}
8... Bd6 {[%clk 0:02:42.5]} 9. Bb2 {[%clk 0:02:55.2]} 9... O-O {[%clk
0:02:42.2]} 10. a3 {[%clk 0:02:55.4]} 10... Rc8 {[%clk 0:02:28.6]} 11. Nbd2
{[%clk 0:02:53.7]} 11... Ne5 {[%clk 0:02:22]} 12. Nxe5 {[%clk 0:02:45]} 12...
Bxe2 {[%clk 0:02:21.8]} 13. Qxe2 {[%clk 0:02:34.6]} 13... Bxe5 {[%clk
0:02:21.4]} 14. Rac1 {[%clk 0:02:33.3]} 14... Qd7 {[%clk 0:02:09.3]} 15. Nf3
{[%clk 0:02:30.4]} 15... Bb8 {[%clk 0:02:07.6]} 16. Rfd1 {[%clk 0:02:29.1]}
16... Qa4 {[%clk 0:02:05.1]} 17. Qc2 {[%clk 0:02:17.8]} 17... Qxc2 {[%clk
0:02:02]} 18. Rxc2 {[%clk 0:02:18.7]} 18... Rc4 {[%clk 0:02:02.1]} 19. Nd2
{[%clk 0:02:07.2]} 19... Rc6 {[%clk 0:02:00.3]} 20. Rdc1 {[%clk 0:02:03.8]}
20... Rfc8 {[%clk 0:01:58.7]} 21. c4 {[%clk 0:02:00.6]} 21... dxc4 {[%clk
0:01:50.4]} 22. Rxc4 {[%clk 0:01:54.1]} 22... Rxc4 {[%clk 0:01:42.6]} 23. Rxc4
{[%clk 0:01:55]} 23... Rxc4 {[%clk 0:01:38.5]} 24. Nxc4 {[%clk 0:01:55.9]} 24...
Kf8 {[%clk 0:01:08.9]} 25. Bxf6 {[%clk 0:01:52]} 25... gxf6 {[%clk 0:01:08.7]}
26. Na5 {[%clk 0:01:52.1]} 26... Ke7 {[%clk 0:01:03.3]} 27. Nxb7 {[%clk
0:01:51.5]} 27... Kd7 {[%clk 0:01:03.6]} 28. Nc5+ {[%clk 0:01:47.7]} 28... Kc6
{[%clk 0:01:03.9]} 29. Kf1 {[%clk 0:01:47.3]} 29... Kd5 {[%clk 0:00:57.5]} 30.
Nd7 {[%clk 0:01:44.2]} 30... Be5 {[%clk 0:00:47.6]} 31. Nxe5 {[%clk 0:01:43.5]}
31... fxe5 {[%clk 0:00:47.6]} 32. f3 {[%clk 0:01:43.7]} 32... Kc4 {[%clk
0:00:47.6]} 33. Ke2 {[%clk 0:01:40.6]} 33... Kb3 {[%clk 0:00:47.7]} 34. Kd3
{[%clk 0:01:38.7]} 34... Kxa3 {[%clk 0:00:45.5]} 35. Kc3 {[%clk 0:01:38.7]}
35... Ka4 {[%clk 0:00:34.3]} 36. Kc4 {[%clk 0:01:38]} 36... Ka3 {[%clk
0:00:31.8]} 37. g4 {[%clk 0:01:37.8]} 37... f6 {[%clk 0:00:26.9]} 38. h4 {[%clk
0:01:35.2]} 38... e4 {[%clk 0:00:18.4]} 39. fxe4 {[%clk 0:01:31.1]} 39... e5
{[%clk 0:00:17.8]} 40. g5 {[%clk 0:01:31]} 40... fxg5 {[%clk 0:00:17.6]} 41.
hxg5 {[%clk 0:01:29.4]} 41... Ka4 {[%clk 0:00:17.9]} 42. Kc5 {[%clk 0:01:24.5]}
42... Kb3 {[%clk 0:00:13.6]} 43. b5 {[%clk 0:01:23.8]} 43... Ka4 {[%clk
0:00:13.9]} 44. b6 {[%clk 0:01:21.2]} 44... axb6+ {[%clk 0:00:13.8]} 45. Kxb6
{[%clk 0:01:22.1]} 45... Kb4 {[%clk 0:00:14.5]} 46. Kc6 {[%clk 0:01:18.6]} 46...
Kc4 {[%clk 0:00:15.4]} 47. Kd6 {[%clk 0:01:18]} 1-0

[Event "*** Titled Tuesday Blitz"]
[Site "Chess.com"]
[Date "2021.02.02"]
[Round "11"]
[White "LisikValera"]
[Black "Piotrek1979"]
[Result "1-0"]
[WhiteElo "2486"]
[BlackElo "2347"]
[TimeControl "180+1"]
[EndTime "12:06:01 PST"]
[Termination "LisikValera won on time"]

1. d4 {[%clk 0:03:00.9]} 1... d5 {[%clk 0:02:57.1]} 2. Bf4 {[%clk 0:02:58.7]}
2... Nf6 {[%clk 0:02:55.7]} 3. e3 {[%clk 0:02:58.9]} 3... c5 {[%clk 0:02:55.1]}
4. c3 {[%clk 0:02:59.1]} 4... Nc6 {[%clk 0:02:54.6]} 5. Nf3 {[%clk 0:02:59.3]}
5... Bg4 {[%clk 0:02:50.4]} 6. Qb3 {[%clk 0:02:58.6]} 6... Qb6 {[%clk
0:02:05.3]} 7. dxc5 {[%clk 0:02:54.2]} 7... Qxb3 {[%clk 0:02:04.1]} 8. axb3
{[%clk 0:02:55.1]} 8... Bxf3 {[%clk 0:02:04]} 9. gxf3 {[%clk 0:02:55]} 9... e5
{[%clk 0:02:03.9]} 10. Bg3 {[%clk 0:02:55.2]} 10... Bxc5 {[%clk 0:02:03.5]} 11.
Bb5 {[%clk 0:02:54.7]} 11... Nd7 {[%clk 0:01:47.4]} 12. b4 {[%clk 0:02:53.1]}
12... Bb6 {[%clk 0:01:33.2]} 13. Nd2 {[%clk 0:02:52.6]} 13... Ke7 {[%clk
0:01:20.2]} 14. f4 {[%clk 0:02:46.1]} 14... e4 {[%clk 0:01:11.6]} 15. Nb3 {[%clk
0:02:36.9]} 15... Ke6 {[%clk 0:00:58.7]} 16. Bf1 {[%clk 0:02:20]} 16... f5
{[%clk 0:00:57.3]} 17. h4 {[%clk 0:02:19.7]} 17... g6 {[%clk 0:00:56]} 18. Be2
{[%clk 0:02:16.8]} 18... Nf6 {[%clk 0:00:55.3]} 19. h5 {[%clk 0:02:07.6]} 19...
Ne7 {[%clk 0:00:46.4]} 20. hxg6 {[%clk 0:02:06]} 20... hxg6 {[%clk 0:00:45.7]}
21. O-O-O {[%clk 0:02:04.8]} 21... Ng4 {[%clk 0:00:39.7]} 22. Bxg4 {[%clk
0:02:02.5]} 22... fxg4 {[%clk 0:00:40.6]} 23. Rhg1 {[%clk 0:01:54.5]} 23... Nf5
{[%clk 0:00:40.1]} 24. Rd2 {[%clk 0:01:53.7]} 24... Rh3 {[%clk 0:00:38.4]} 25.
Nc5+ {[%clk 0:01:41.8]} 25... Bxc5 {[%clk 0:00:37.9]} 26. bxc5 {[%clk
0:01:42.7]} 26... Rc8 {[%clk 0:00:37.4]} 27. b4 {[%clk 0:01:42.2]} 27... b6
{[%clk 0:00:37.6]} 28. Rgd1 {[%clk 0:01:38]} 28... Ne7 {[%clk 0:00:31]} 29. c4
{[%clk 0:01:30.5]} 29... dxc4 {[%clk 0:00:30.7]} 30. Rd4 {[%clk 0:01:27.6]}
30... bxc5 {[%clk 0:00:29.3]} 31. Rxe4+ {[%clk 0:01:27.6]} 31... Kf7 {[%clk
0:00:24.9]} 32. Rd7 {[%clk 0:01:25.8]} 32... Re8 {[%clk 0:00:24.4]} 33. bxc5
{[%clk 0:01:25]} 33... Rh5 {[%clk 0:00:23.2]} 34. c6 {[%clk 0:01:21.8]} 34...
Rc5 {[%clk 0:00:22.3]} 35. Bh4 {[%clk 0:01:20.2]} 35... g5 {[%clk 0:00:09.2]}
36. Bxg5 {[%clk 0:01:19.4]} 36... a5 {[%clk 0:00:05.6]} 37. c7 {[%clk
0:01:15.4]} 37... Kg6 {[%clk 0:00:04]} 38. Rexe7 {[%clk 0:01:14.1]} 38... Ra8
{[%clk 0:00:01.9]} 39. Rd8 {[%clk 0:01:11.7]} 1-0